fUST/lending_fUST_20250918
["ID","MTS","AMOUNT","RATE_DAILY","PERIOD"]
[385944099,1758142936803,150.0,0.00021486,2]
[385944100,1758142966122,226.617831,0.00022559,2]
[385944101,1758142966898,117.31593538,0.00022559,2]
[385944102,1758142966920,149.43336993,0.00022559,2]
[385944103,1758142985402,1428.84040233,0.00023157,2]
[385944104,1758143001657,150.0,0.00021505,2]
[385944105,1758143066158,150.0,0.00021511,2]
[385944106,1758143108928,621.780443,0.00022257,2]
[385944116,1758143131183,150.0,0.0002151,2]
[385944120,1758143146500,252.46715232,0.00023156,2]
[385944121,1758143196814,150.0,0.00021353,2]
[385944122,1758143262719,150.0,0.00021362,2]
[385944123,1758143270724,1250.23535203,0.00023155,2]
[385944124,1758143313118,5547.25328039,0.00022257,2]
[385944125,1758143313142,3452.60031581,0.00022257,2]
[385944126,1758143322723,5355.7311942,0.00022257,2]
[385944127,1758143327840,150.0,0.00021347,2]
[385944140,1758143432576,-277.94464223,0.00023253,2]
[385944142,1758143432587,-22.05535777,0.00023253,2]
[385944144,1758143432596,-300.0,0.00023253,2]
[385944146,1758143432606,-300.0,0.00023253,2]
[385944148,1758143432615,-498.14464223,0.00023253,2]
[385944151,1758143432631,-545.18028167,0.00023253,2]
[385944153,1758143432642,-156.6750761,0.00023253,2]
[385944155,1758143432651,-1200.0,0.00023254,2]
[385944156,1758143432661,-480.0,0.00023254,3]
[385944158,1758143432670,-480.0,0.00023254,3]
[385944160,1758143432679,-646.99,0.00023254,3]
[385944162,1758143432688,-480.0,0.00023254,3]
[385944165,1758143432697,-480.0,0.00023254,3]
[385944167,1758143432707,-500.0,0.00023255,2]
[385944169,1758143432716,-50000.0,0.00023255,2]
[385944171,1758143432725,-500.0,0.00023255,2]
[385944173,1758143432734,-500.0,0.00023255,2]
[385944175,1758143432742,-500.0,0.00023255,2]
[385944177,1758143432752,-397.37470612,0.00023255,2]
[385944180,1758143432761,-420.51789851,0.00023255,2]
[385944182,1758143432770,-500.0,0.00023255,2]
[385944184,1758143432779,-500.0,0.00023255,2]
[385944186,1758143432788,-466.94756915,0.00023255,2]
[385944188,1758143432798,-500.0,0.00023255,2]
[385944190,1758143432806,-500.0,0.00023255,2]
[385944192,1758143432815,-500.0,0.00023255,2]
[385944194,1758143432825,-14854.54671356,0.00023255,2]
[385944196,1758143432834,-250.95,0.00023256,3]
[385944198,1758143432843,-476.79,0.00023256,3]
[385944200,1758143432852,-480.0,0.00023256,3]
[385944202,1758143432861,-480.0,0.00023256,3]
[385944204,1758143432873,-480.0,0.00023256,3]
[385944206,1758143432882,-317.29334356,0.00023256,3]
[385944208,1758143432891,-591.28652004,0.00023256,3]
[385944210,1758143432901,-427.41755819,0.00023256,3]
[385944212,1758143432910,-480.0,0.00023256,3]
[385944214,1758143432920,-480.0,0.00023256,3]
[385944216,1758143432929,-480.0,0.00023256,3]
[385944218,1758143432940,-480.0,0.00023256,3]
[385944220,1758143432949,-480.0,0.00023256,3]
[385944222,1758143432959,-480.0,0.00023256,3]
[385944224,1758143432968,-480.0,0.00023256,3]
[385944226,1758143432977,-175.78,0.00023256,3]
[385944228,1758143432986,-480.0,0.00023256,3]
[385944230,1758143432995,-306.34,0.00023256,3]
[385944232,1758143433004,-480.0,0.00023256,3]
[385944234,1758143433014,-480.0,0.00023256,3]
[385944236,1758143433023,-480.0,0.00023256,3]
[385944238,1758143433033,-480.0,0.00023256,3]
[385944240,1758143433042,-480.0,0.00023256,3]
[385944242,1758143433052,-480.0,0.00023256,3]
[385944244,1758143433061,-480.0,0.00023256,3]
[385944246,1758143433070,-480.0,0.00023256,3]
[385944248,1758143433079,-480.0,0.00023256,3]
[385944250,1758143433088,-480.0,0.00023256,3]
[385944251,1758143433097,-480.0,0.00023256,3]
[385944252,1758143433106,-480.0,0.00023256,3]
[385944253,1758143433115,-221.26117875,0.00023256,3]
[385944254,1758143433124,-480.0,0.00023256,3]
[385944255,1758143433134,-480.0,0.00023256,3]
[385944256,1758143433144,-480.0,0.00023256,3]
[385944257,1758143433156,-480.0,0.00023256,3]
[385944258,1758143433167,-480.0,0.00023256,3]
[385944259,1758143433179,-480.0,0.00023256,3]
[385944260,1758143433190,-480.0,0.00023256,3]
[385944261,1758143433202,-480.0,0.00023256,3]
[385944262,1758143433214,-484.22,0.00023256,3]
[385944263,1758143433224,-480.0,0.00023256,3]
[385944264,1758143433234,-480.0,0.00023256,3]
[385944265,1758143433244,-480.0,0.00023256,3]
[385944266,1758143433255,-480.0,0.00023256,3]
[385944267,1758143433265,-480.0,0.00023256,3]
[385944268,1758143433276,-480.0,0.00023256,3]
[385944269,1758143433286,-480.0,0.00023256,3]
[385944270,1758143433298,-1215.58,0.00023256,3]
[385944271,1758143433309,-480.0,0.00023256,3]
[385944272,1758143433319,-480.0,0.00023256,3]
[385944273,1758143433330,-480.0,0.00023256,3]
[385944274,1758143433342,-480.0,0.00023256,3]
[385944275,1758143433353,-480.0,0.00023256,3]
[385944276,1758143433364,-480.0,0.00023256,3]
[385944277,1758143433375,-480.0,0.00023256,3]
[385944278,1758143433387,-480.0,0.00023256,3]
[385944279,1758143433397,-480.0,0.00023256,3]
[385944280,1758143433408,-236.65,0.00023256,3]
[385944281,1758143433419,-480.0,0.00023256,3]
[385944282,1758143433430,-480.0,0.00023256,3]
[385944283,1758143433442,-220.63971981,0.00023256,3]
[385944284,1758143433453,-480.0,0.00023256,3]
[385944285,1758143433463,-480.0,0.00023256,3]
[385944286,1758143433474,-480.0,0.00023256,3]
[385944287,1758143433485,-480.0,0.00023256,3]
[385944288,1758143433496,-480.0,0.00023256,3]
[385944289,1758143433507,-480.0,0.00023256,3]
[385944290,1758143433518,-605.22560838,0.00023256,3]
[385944291,1758143433529,-480.0,0.00023256,3]
[385944292,1758143433540,-480.0,0.00023256,3]
[385944293,1758143433551,-480.0,0.00023256,3]
[385944294,1758143433562,-480.0,0.00023256,3]
[385944295,1758143433572,-824.87,0.00023256,3]
[385944296,1758143433583,-480.0,0.00023256,3]
[385944298,1758143433595,-651.97,0.00023256,3]
[385944299,1758143433606,-480.0,0.00023256,3]
[385944300,1758143433616,-480.0,0.00023256,3]
[385944301,1758143433627,-480.0,0.00023256,3]
[385944302,1758143433638,-480.0,0.00023256,3]
[385944303,1758143433648,-480.0,0.00023256,3]
[385944304,1758143433660,-480.0,0.00023256,3]
[385944305,1758143433671,-480.0,0.00023256,3]
[385944306,1758143433682,-480.0,0.00023256,3]
[385944307,1758143433693,-656.87,0.00023256,3]
[385944308,1758143433703,-281.56,0.00023256,3]
[385944309,1758143433715,-238.93,0.00023257,3]
[385944310,1758143433726,-418.86,0.00023257,3]
[385944311,1758143433737,-480.0,0.00023257,3]
[385944312,1758143433749,-480.0,0.00023257,3]
[385944313,1758143433760,-480.0,0.00023257,3]
[385944314,1758143433772,-480.0,0.00023257,3]
[385944315,1758143433783,-480.0,0.00023257,3]
[385944316,1758143433793,-480.0,0.00023257,3]
[385944317,1758143433802,-480.0,0.00023257,3]
[385944318,1758143433812,-480.0,0.00023257,3]
[385944319,1758143433822,-480.0,0.00023257,3]
[385944320,1758143433832,-480.0,0.00023257,3]
[385944321,1758143433842,-480.0,0.00023257,3]
[385944322,1758143433852,-480.0,0.00023257,3]
[385944323,1758143433863,-480.0,0.00023257,3]
[385944324,1758143433879,-500.0,0.00023257,3]
[385944325,1758143433891,-151.0,0.00023257,3]
[385944326,1758143433901,-151.0,0.00023257,3]
[385944327,1758143433914,-239.1556791,0.00023257,3]
[385944328,1758143433924,-1997.42,0.00023257,3]
[385944329,1758143433933,-481.82613246,0.00023258,3]
[385944330,1758143433943,-480.0,0.00023258,3]
[385944331,1758143433954,-458.66,0.00023258,3]
[385944332,1758143433964,-287.81154795,0.00023258,3]
[385944333,1758143433974,-480.0,0.00023258,3]
[385944334,1758143433984,-611.5,0.00023258,3]
[385944335,1758143433996,-480.0,0.00023258,3]
[385944336,1758143434006,-480.0,0.00023258,3]
[385944337,1758143434017,-480.0,0.00023258,3]
[385944338,1758143434026,-480.0,0.00023258,3]
[385944339,1758143434036,-480.0,0.00023258,3]
[385944340,1758143434046,-480.0,0.00023258,3]
[385944341,1758143434056,-480.0,0.00023258,3]
[385944342,1758143434066,-258.38,0.00023258,3]
[385944343,1758143434076,-572.5,0.00023258,3]
[385944344,1758143434086,-480.0,0.00023258,3]
[385944345,1758143434096,-480.0,0.00023258,3]
[385944346,1758143434107,-480.0,0.00023259,3]
[385944347,1758143434116,-480.0,0.00023259,3]
[385944348,1758143434127,-2843.43,0.00023287,2]
[385944349,1758143434137,-658.28,0.0002343,3]
[385944350,1758143434147,-480.0,0.0002343,3]
[385944351,1758143434158,-480.0,0.00023528,3]
[385944352,1758143434168,-480.0,0.00023528,3]
[385944353,1758143434179,-646.99,0.00023528,3]
[385944354,1758143434189,-480.0,0.00023528,3]
[385944355,1758143434199,-480.0,0.00023528,3]
[385944356,1758143434209,-480.0,0.0002353,3]
[385944357,1758143434219,-190.34935619,0.0002353,3]
[385944358,1758143434236,-289.65064381,0.0002353,3]
[385944359,1758143434246,-480.0,0.0002353,3]
[385944360,1758143434256,-484.22,0.0002353,3]
[385944361,1758143434266,-480.0,0.0002353,3]
[385944362,1758143434276,-480.0,0.0002353,3]
[385944363,1758143434286,-332.89133732,0.0002353,3]
[385944364,1758143434296,-480.0,0.0002353,3]
[385944365,1758143434307,-320.57,0.0002353,3]
[385944366,1758143434317,-1175.12674994,0.0002353,3]
[385944367,1758143434329,-40.45325006,0.0002353,3]
[385944368,1758143434338,-350.4573497,0.0002353,3]
[385944369,1758143434350,-71.5526503,0.0002353,3]
[385944370,1758143434360,-567.84752691,0.0002353,3]
[385944371,1758143434371,-480.0,0.0002353,3]
[385944372,1758143434381,-480.0,0.0002353,3]
[385944373,1758143434392,-480.0,0.0002353,3]
[385944374,1758143434402,-480.0,0.0002353,3]
[385944375,1758143434412,-480.0,0.0002353,3]
[385944376,1758143434422,-480.0,0.0002353,3]
[385944377,1758143434432,-480.0,0.0002353,3]
[385944378,1758143434443,-480.0,0.0002353,3]
[385944379,1758143434452,-480.0,0.0002353,3]
[385944380,1758143434588,-480.0,0.0002353,3]
[385944381,1758143434598,-824.87,0.0002353,3]
[385944382,1758143434607,-480.0,0.0002353,3]
[385944383,1758143434617,-651.97,0.0002353,3]
[385944384,1758143434626,-480.0,0.0002353,3]
[385944385,1758143434635,-480.0,0.0002353,3]
[385944386,1758143434644,-480.0,0.0002353,3]
[385944387,1758143434652,-480.0,0.0002353,3]
[385944388,1758143434662,-480.0,0.0002353,3]
[385944389,1758143434672,-492.17479989,0.0002353,3]
[385944390,1758143434680,-656.87,0.0002353,3]
[385944391,1758143434691,-500.0,0.00023531,3]
[385944392,1758143434700,-276.78883637,0.00023531,3]
[385944393,1758143434709,-1997.42,0.00023531,3]
[385944394,1758143434719,-480.0,0.00023532,3]
[385944395,1758143434727,-480.0,0.00023533,3]
[385944396,1758143434737,-480.0,0.00023533,3]
[385944397,1758143434746,-500.0,0.00023573,2]
[385944398,1758143434755,-500.0,0.00023573,2]
[385944399,1758143434764,-500.0,0.00023573,2]
[385944400,1758143434773,-658.28,0.00023704,3]
[385944401,1758143434782,-480.0,0.00023704,3]
[385944402,1758143434797,-346.16,0.00023706,3]
[385944403,1758143434806,-600.0,0.00023722,20]
[385944404,1758143434815,-160.0,0.00023794,2]
[385944405,1758143434824,-285.61178535,0.00023802,3]
[385944406,1758143434834,-480.0,0.00023802,3]
[385944407,1758143434843,-646.99,0.00023802,3]
[385944408,1758143434852,-199.74,0.00023802,3]
[385944409,1758143434862,-480.0,0.00023802,3]
[385944410,1758143434875,-480.0,0.00023804,3]
[385944411,1758143434885,-617.83,0.00023804,3]
[385944412,1758143434894,-484.22,0.00023804,3]
[385944413,1758143434903,-480.0,0.00023804,3]
[385944414,1758143434912,-480.0,0.00023804,3]
[385944415,1758143434923,-486.08276517,0.00023804,3]
[385944416,1758143434932,-1215.58,0.00023804,3]
[385944417,1758143434941,-480.0,0.00023804,3]
[385944418,1758143434952,-480.0,0.00023804,3]
[385944419,1758143434961,-480.0,0.00023804,3]
[385944420,1758143434970,-480.0,0.00023804,3]
[385944421,1758143434979,-485.3,0.00023804,3]
[385944422,1758143434988,-480.0,0.00023804,3]
[385944423,1758143434997,-480.0,0.00023804,3]
[385944424,1758143435007,-480.0,0.00023804,3]
[385944425,1758143435017,-824.87,0.00023804,3]
[385944426,1758143435026,-480.0,0.00023804,3]
[385944427,1758143435035,-651.97,0.00023804,3]
[385944428,1758143435044,-480.0,0.00023804,3]
[385944429,1758143435053,-207.66,0.00023804,3]
[385944430,1758143435063,-480.0,0.00023804,3]
[385944431,1758143435072,-480.0,0.00023804,3]
[385944432,1758143435081,-656.87,0.00023804,3]
[385944433,1758143435090,-500.0,0.00023805,3]
[385944434,1758143435098,-1997.42,0.00023805,3]
[385944435,1758143435107,-480.0,0.00023806,3]
[385944436,1758143435116,-200.82,0.00023807,3]
[385944437,1758143435125,-480.0,0.00023807,3]
[385944438,1758143435135,-347.91740452,0.00023821,2]
[385944439,1758143435145,-252.46715229,0.0002391,2]
[385944440,1758143435154,-658.28,0.00023978,3]
[385944441,1758143435163,-480.0,0.00023978,3]
[385944442,1758143435171,-822.58,0.0002398,3]
[385944443,1758143435180,-411.28,0.00024068,3]
[385944444,1758143435190,-480.0,0.00024076,3]
[385944445,1758143435199,-646.99,0.00024076,3]
[385944446,1758143435208,-480.0,0.00024076,3]
[385944447,1758143435217,-480.0,0.00024078,3]
[385944448,1758143435226,-484.22,0.00024078,3]
[385944449,1758143435235,-358.1,0.00024078,3]
[385944450,1758143435244,-480.0,0.00024078,3]
[385944451,1758143435253,-1215.58,0.00024078,3]
[385944452,1758143435262,-480.0,0.00024078,3]
[385944453,1758143435271,-480.0,0.00024078,3]
[385944454,1758143435280,-480.0,0.00024078,3]
[385944455,1758143435290,-480.0,0.00024078,3]
[385944456,1758143435299,-400.2230414,0.00024078,3]
[385944457,1758143435308,-480.0,0.00024078,3]
[385944458,1758143435317,-824.87,0.00024078,3]
[385944459,1758143435326,-480.0,0.00024078,3]
[385944460,1758143435335,-651.97,0.00024078,3]
[385944461,1758143435344,-480.0,0.00024078,3]
[385944462,1758143435353,-480.0,0.00024078,3]
[385944463,1758143435362,-480.0,0.00024078,3]
[385944464,1758143435371,-656.87,0.00024078,3]
[385944465,1758143435380,-500.0,0.00024079,3]
[385944466,1758143435389,-1997.42,0.00024079,3]
[385944467,1758143435398,-480.0,0.0002408,3]
[385944468,1758143435407,-480.0,0.00024081,3]
[385944469,1758143435416,-391.7346149,0.00024252,3]
[385944470,1758143435428,-253.17199089,0.00024252,3]
[385944476,1758143438338,-13.37339421,0.00024252,3]
[385944477,1758143438348,-480.0,0.00024252,3]
[385944478,1758143438357,-182.79,0.00024343,3]
[385944479,1758143438366,-353.40608063,0.00024343,3]
[385944480,1758143438377,-195.00391937,0.00024343,3]
[385944481,1758143438386,-457.65678207,0.0002435,3]
[385944482,1758143438398,-22.34321793,0.0002435,3]
[385944483,1758143438407,-646.99,0.0002435,3]
[385944484,1758143438416,-480.0,0.0002435,3]
[385944485,1758143438425,-117.18803835,0.00024351,2]
[385944486,1758143438437,-134.06368771,0.00024351,2]
[385944487,1758143438446,-500.0,0.00024351,2]
[385944488,1758143438455,-231.04904732,0.00024351,2]
[385944489,1758143438466,-79.46403667,0.00024351,2]
[385944490,1758143438475,-480.0,0.00024352,3]
[385944491,1758143438485,-484.22,0.00024352,3]
[385944492,1758143438494,-480.0,0.00024352,3]
[385944493,1758143438504,-1215.58,0.00024352,3]
[385944494,1758143438513,-480.0,0.00024352,3]
[385944495,1758143438522,-480.0,0.00024352,3]
[385944496,1758143438532,-480.0,0.00024352,3]
[385944497,1758143438541,-480.0,0.00024352,3]
[385944498,1758143438551,-480.0,0.00024352,3]
[385944499,1758143438560,-824.87,0.00024352,3]
[385944501,1758143438569,-651.97,0.00024352,3]
[385944502,1758143438578,-480.0,0.00024352,3]
[385944503,1758143438587,-480.0,0.00024352,3]
[385944504,1758143438597,-480.0,0.00024352,3]
[385944505,1758143438607,-656.87,0.00024352,3]
[385944506,1758143438616,-500.0,0.00024353,3]
[385944507,1758143438626,-1997.42,0.00024353,3]
[385944508,1758143438635,-480.0,0.00024354,3]
[385944509,1758143438644,-480.0,0.00024355,3]
[385944510,1758143438654,-642.58153134,0.00024526,3]
[385944511,1758143438665,-15.69846866,0.00024526,3]
[385944512,1758143438674,-480.0,0.00024526,3]
[385944513,1758143438683,-160.0,0.00024616,2]
[385944514,1758143438692,-480.0,0.00024624,3]
[385944515,1758143438703,-646.99,0.00024624,3]
[385944516,1758143438712,-480.0,0.00024624,3]
[385944517,1758143438721,-480.0,0.00024626,3]
[385944518,1758143438730,-484.22,0.00024626,3]
[385944519,1758143438739,-480.0,0.00024626,3]
[385944520,1758143438747,-1215.58,0.00024626,3]
[385944521,1758143438757,-489.36,0.00024626,3]
[385944522,1758143438766,-480.0,0.00024626,3]
[385944523,1758143438775,-480.0,0.00024626,3]
[385944524,1758143438783,-480.0,0.00024626,3]
[385944525,1758143438792,-310.19,0.00024626,3]
[385944526,1758143438804,-824.87,0.00024626,3]
[385944527,1758143438813,-651.97,0.00024626,3]
[385944528,1758143438822,-480.0,0.00024626,3]
[385944529,1758143438831,-480.0,0.00024626,3]
[385944530,1758143438840,-480.0,0.00024626,3]
[385944531,1758143438849,-656.87,0.00024626,3]
[385944532,1758143438859,-500.0,0.00024627,3]
[385944533,1758143438867,-1997.42,0.00024627,3]
[385944534,1758143438880,-480.0,0.00024628,3]
[385944535,1758143438889,-204.22567322,0.00024657,2]
[385944536,1758143438898,-500.0,0.00024658,2]
[385944537,1758143438907,-252.46715229,0.00024664,2]
[385944538,1758143438917,-658.28,0.000248,3]
[385944539,1758143438927,-480.0,0.000248,3]
[385944540,1758143438936,-500.0,0.00024873,2]
[385944541,1758143438945,-500.0,0.00024873,2]
[385944542,1758143438955,-480.0,0.00024898,3]
[385944543,1758143438964,-646.99,0.00024898,3]
[385944544,1758143438973,-480.0,0.00024898,3]
[385944545,1758143438982,-150.0,0.00024899,2]
[385944546,1758143438992,-480.0,0.000249,3]
[385944547,1758143439001,-484.22,0.000249,3]
[385944548,1758143439010,-480.0,0.000249,3]
[385944549,1758143439019,-1215.58,0.000249,3]
[385944550,1758143439027,-480.0,0.000249,3]
[385944551,1758143439036,-306.24,0.000249,3]
[385944552,1758143439047,-51164.3817258,0.000249,2]
[385944553,1758143439058,-4128.12962731,0.000249,2]
[385944554,1758143439069,-4294.17921322,0.000249,2]
[385944600,1758143440569,-480.0,0.00023254,3]
[385944603,1758143440578,-480.0,0.00023528,3]
[385944606,1758143440588,-4809.988,0.000249,2]
[385944744,1758143443662,-480.0,0.00023802,3]
[385944745,1758143443671,-369.69800674,0.00024076,3]
[385944778,1758143546800,1041.67848999,0.00023155,2]
[385944779,1758143546824,535.5577458,0.00023155,2]
[385944780,1758143579114,168.179324,0.0002301,2]
[385944782,1758143709984,1920.0,0.00023155,2]
[385944786,1758144098166,310.890221,0.00022611,2]
[385944787,1758144149181,-300.0,0.00023253,2]
[385944788,1758144149208,-914.0,0.00023253,2]
[385944789,1758144149238,-300.0,0.00023253,2]
[385944790,1758144149265,-208.0,0.00023253,2]
[385944791,1758144149295,-618.66,0.00023254,3]
[385944792,1758144149324,-480.0,0.00023254,3]
[385944793,1758144149353,-480.0,0.00023254,3]
[385944794,1758144149384,-861.04,0.00023254,3]
[385944795,1758144149416,-480.0,0.00023254,3]
[385944796,1758144149443,-236.61,0.00023254,3]
[385944809,1758144355768,10000.01,0.00022603,2]
[385944810,1758144454590,10000.01,0.000219,2]
[385944811,1758144454612,10000.01,0.000219,2]
[385944812,1758144454634,10000.01,0.000219,2]
[385944813,1758144454655,10000.01,0.000219,2]
[385944814,1758144454676,10000.01,0.000219,2]
[385944815,1758144454698,10000.01,0.000219,2]
[385944816,1758144454720,10000.01,0.000219,2]
[385944817,1758144454741,6294.41951261,0.000219,2]
[385944818,1758144481741,150.0,0.00021497,2]
[385944823,1758144513312,37069.00151316,0.0002,20]
[385944824,1758144543620,500.0,0.0002,2]
[385944825,1758144554352,500.0,0.0002,2]
[385944846,1758144632726,-1498.07,0.00023254,3]
[385944847,1758144632735,-381.930005,0.00023254,3]
[385945204,1758144730351,202.0,0.00021014,3]
[385945206,1758144780686,199.347144,0.00022421,2]
[385945208,1758144891827,1122.1387018,0.00022397,2]
[385945209,1758144895701,10000.0,0.00022378,2]
[385945210,1758144956698,408.09098953,0.0002303,2]
[385945211,1758144959177,290.17387763,0.000224,2]
[385945212,1758144959525,1632.36395811,0.0002303,2]
[385945213,1758145025692,325.87146973,0.0002303,2]
[385945214,1758145028072,1302.18239303,0.0002303,2]
[385945215,1758145043472,158.0,0.00020466,3]
[385945216,1758145108435,312.0,0.00023035,2]
[385945217,1758145109337,168.0,0.00023037,7]
[385945218,1758145121576,425.680476,0.00022325,2]
[385945219,1758145316991,14644.2587058,0.00022324,2]
[385945220,1758145332324,577.556405,0.00022472,2]
[385945221,1758145369821,182.71136628,0.00022555,2]
[385945232,1758145560582,746.24834118,0.00022472,2]
[385945233,1758145563100,2982.00837136,0.00022472,2]
[385945278,1758145832017,-1200.0,0.0002325,2]
[385945280,1758145832026,-300.0,0.0002325,2]
[385945281,1758145832035,-300.0,0.0002325,2]
[385945282,1758145832045,-300.0,0.0002325,2]
[385945283,1758145832055,-300.0,0.0002325,2]
[385945284,1758145832064,-300.0,0.0002325,2]
[385945286,1758145832074,-1200.0,0.00023251,2]
[385945287,1758145832083,-58.4519141,0.00023252,3]
[385945317,1758145837879,-421.5480859,0.00023252,3]
[385945319,1758145837888,-480.0,0.00023252,3]
[385945321,1758145837898,-480.0,0.00023252,3]
[385945323,1758145837907,-480.0,0.00023252,3]
[385945325,1758145837917,-480.0,0.00023252,3]
[385945327,1758145837928,-480.0,0.00023252,3]
[385945329,1758145837937,-480.0,0.00023252,3]
[385945331,1758145837946,-480.0,0.00023252,3]
[385945333,1758145837956,-480.0,0.00023252,3]
[385945335,1758145837965,-741.46,0.00023252,3]
[385945337,1758145837974,-480.0,0.00023252,3]
[385945339,1758145837984,-480.0,0.00023252,3]
[385945342,1758145837993,-480.0,0.00023252,3]
[385945345,1758145838003,-480.0,0.00023252,3]
[385945348,1758145838012,-480.0,0.00023252,2]
[385945351,1758145838022,-480.0,0.00023252,3]
[385945353,1758145838031,-480.0,0.00023252,3]
[385945355,1758145838040,-480.0,0.00023252,3]
[385945357,1758145838049,-480.0,0.00023252,3]
[385945359,1758145838059,-480.0,0.00023252,3]
[385945361,1758145838068,-480.0,0.00023252,3]
[385945362,1758145838077,-480.0,0.00023252,3]
[385945364,1758145838087,-550.17,0.00023252,3]
[385945366,1758145838096,-480.0,0.00023252,3]
[385945368,1758145838105,-402.89,0.00023252,3]
[385945370,1758145838115,-480.0,0.00023252,3]
[385945372,1758145838124,-480.0,0.00023252,3]
[385945374,1758145838134,-480.0,0.00023252,3]
[385945376,1758145838143,-480.0,0.00023252,3]
[385945378,1758145838153,-480.0,0.00023252,3]
[385945380,1758145838162,-10967.03521693,0.00023252,2]
[385945381,1758145838172,-4493.30822724,0.00023253,2]
[385945383,1758145838182,-160.0,0.00023253,2]
[385945385,1758145838191,-160.0,0.00023253,2]
[385945387,1758145838200,-480.0,0.00023253,3]
[385945389,1758145838209,-480.0,0.00023253,3]
[385945391,1758145838219,-480.0,0.00023253,3]
[385945393,1758145838228,-480.0,0.00023253,3]
[385945395,1758145838238,-480.0,0.00023253,3]
[385945397,1758145838247,-480.0,0.00023253,3]
[385945399,1758145838257,-480.0,0.00023253,3]
[385945401,1758145838266,-480.0,0.00023253,3]
[385945403,1758145838275,-480.0,0.00023253,3]
[385945405,1758145838285,-960.22,0.00023253,3]
[385945407,1758145838295,-480.0,0.00023253,3]
[385945408,1758145838304,-480.0,0.00023253,3]
[385945410,1758145838313,-217.90857035,0.00023253,3]
[385945412,1758145838323,-561.42,0.00023253,3]
[385945414,1758145838331,-480.0,0.00023253,3]
[385945416,1758145838341,-480.0,0.00023253,3]
[385945418,1758145838350,-480.0,0.00023253,3]
[385945420,1758145838360,-480.0,0.00023253,3]
[385945422,1758145838369,-480.0,0.00023254,3]
[385945424,1758145838378,-480.0,0.00023255,3]
[385945426,1758145838388,-500.0,0.00023255,3]
[385945428,1758145838398,-451.81591432,0.000233,2]
[385945430,1758145838407,-2010.73251142,0.00023426,2]
[385945432,1758145838416,-480.0,0.00023526,3]
[385945434,1758145838425,-480.0,0.00023526,3]
[385945436,1758145838434,-480.0,0.00023526,3]
[385945438,1758145838444,-480.0,0.00023526,3]
[385945440,1758145838453,-480.0,0.00023526,3]
[385945442,1758145838462,-480.0,0.00023526,3]
[385945443,1758145838471,-741.46,0.00023526,3]
[385945445,1758145838481,-480.0,0.00023526,3]
[385945447,1758145838490,-480.0,0.00023526,3]
[385945449,1758145838499,-480.0,0.00023526,3]
[385945451,1758145838508,-480.0,0.00023526,3]
[385945453,1758145838517,-480.0,0.00023526,3]
[385945455,1758145838527,-480.0,0.00023526,3]